[Event "Czech Championship Women 2022"]
[Site "Jaromerice nad Rokytnou"]
[Date "2022.05.25"]
[Round "5.5"]
[White "Nemcova, Karin"]
[Black "Petrova, Kristyna"]
[Result "0-1"]
[ECO "D00"]
[WhiteElo "2181"]
[BlackElo "2264"]
[Annotator "TA"]
[PlyCount "99"]
[EventDate "2022.05.24"]
[EventType "tourn"]
[EventCountry "CZE"]
[SourceTitle "playchess.com"]
[Source "ChessBase"]
[SourceQuality "1"]
[TimeControl "40/5400+30:1800+30"]

{[%evp 9,99,-16,-2,-12,0,-18,0,0,3,-43,-52,-58,0,0,0,-4,5,-36,-35,-41,-35,-64,-54,-47,-59,-54,-21,-56,-29,-41,-41,-40,0,-26,21,14,4,17,19,7,18,11,5,19,13,0,37,0,0,0,95,-14,0,-21,0,-26,0,-14,0,-63,0,-373,71,76,150,0,0,-11,0,-107,-109,-164,0,0,0,-77,0,0,0,-78,-89,-76,-89,-547,-544,-484,-469,-416,-35,-39,-40,-294]} 1. d4 {[%emt 0:00:02]} Nf6 {[%emt 0:00:08]} 2. Nc3 {[%emt 0:00:08]} d5 {[%emt 0:00:25]} 3. Bf4 {[%emt 0:00:08]} e6 {[%emt 0:04:53]} 4. Nb5 {[%emt 0:00:15]} Na6 {[%emt 0:01:10]} 5. e3 {[%emt 0:00:14]} Be7 {[%emt 0:07:46]} 6. Nf3 {[%emt 0:01:14] D00: 1 d4 d5: Unusual lines.} O-O {[%emt 0:00:55]} 7. Ne5 {[%emt 0:02:20]} c6 {[%emt 0:12:13]} 8. Nc3 {[%emt 0:00:28] The position is equal.} Qa5 {[%emt 0:10:53][%cal Oe7a3] [#]} 9. f3 $146 {[%emt 0:09:53]} (9. Bd3 $11) ({Predecessor:} 9. Bd3 Nb4 10. Be2 Ne4 11. O-O f6 12. Nxe4 fxe5 13. Bg5 Qd8 14. Bxe7 Qxe7 15. Nd2 {1-0 (56) Ponomariov,T (2172)-Medvedev,M (1929) Voronezh 2019}) 9... Nh5 {[%emt 0:02:53]} 10. Bg3 {[%emt 0:02:26] [#]} c5 {[%emt 0:09:00]} (10... Ba3 $1 $15 11. bxa3 (11. Bxa6 $2 Bxb2 12. Kf2 Qxc3 $19) (11. Qc1 f6) 11... Qxc3+ 12. Ke2 (12. Kf2 f6 $17) 12... Nxg3+ 13. hxg3 c5) 11. Bf2 $11 {[%emt 0:10:04]} cxd4 {[%emt 0:11:39]} 12. exd4 {[%emt 0:00:46]} Nb4 {[%emt 0:00:19]} 13. g4 {[%emt 0:02:47]} Nf4 {[%emt 0:04:38]} 14. a3 $1 {[%emt 0:04:11]} Nc6 {[%emt 0:00:07]} 15. Bg3 {[%emt 0:02:28]} Ng6 {[%emt 0:02:10] Black is more active.} 16. Nxc6 {[%emt 0:07:40]} bxc6 {[%emt 0:00:02]} 17. h4 {[%emt 0:02:43]} f6 {[%emt 0:06:38]} 18. Bd3 {[%emt 0:03:56]} Nh8 {[%emt 0:03:57]} (18... e5 $5 {[%cal Re5d4]}) 19. b4 {[%emt 0:04:12]} Qd8 {[%emt 0:00:48]} 20. Ne2 {[%emt 0:03:40]} e5 {[%emt 0:01:28]} 21. c3 {[%emt 0:00:31] Black must now prevent Qc2.} e4 {[%emt 0:02:00]} (21... Nf7 {deserves consideration.}) 22. fxe4 {[%emt 0:00:25]} Bxg4 {[%emt 0:00:38]} 23. Qc2 {[%emt 0:02:22]} Bf3 {[%emt 0:04:36]} 24. O-O {[%emt 0:08:16]} Bxe4 {[%emt 0:00:07]} 25. Bxe4 {[%emt 0:00:12]} dxe4 {[%emt 0:00:01]} 26. Qxe4 {[%emt 0:00:11]} Qd7 {[%emt 0:00:41]} 27. Nf4 {[%emt 0:03:36]} Rfe8 {[%emt 0:05:19][%cal Oe7b4]} 28. Qf3 {[%emt 0:02:32]} Nf7 {[%emt 0:02:47]} 29. Ra2 {[%emt 0:02:41]} Bd6 {[%emt 0:02:58]} (29... Bf8 $11) 30. Rg2 {[%emt 0:00:16]} ({White has to play} 30. Nh5 $1 $16 {[%cal Rh5g7]} Bf8 31. Qxf6 $3 {[%mdl 512]}) 30... Bxf4 {[%emt 0:01:18]} 31. Bxf4 {[%emt 0:00:19]} Kh8 {[%emt 0:00:14]} 32. Kh2 {[%emt 0:01:22]} Rg8 {[%emt 0:00:47]} 33. h5 {[%emt 0:06:15]} h6 {[%emt 0:01:08]} 34. Rg6 {[%emt 0:01:03]} ({White should play} 34. Re1 $11) 34... Qd5 {[%emt 0:01:14]} (34... Rae8 $15) 35. Qg3 $2 {[%emt 0:02:51][%mdl 8192]} (35. Qxd5 $11 cxd5 36. Rg2) 35... Ng5 $2 {[%emt 0:00:36]} (35... Qxh5+ $19 36. Kg1 Ng5 37. Rxg5 hxg5) 36. Bxg5 $16 {[%emt 0:00:24]} fxg5 {[%emt 0:00:34]} (36... hxg5 $142 37. h6 Rae8) 37. Rd6 {[%emt 0:04:57]} ({White must play} 37. Qe5 $1 $16 {[%cal Rg6h6]} Kh7 38. Kg1) 37... Qe4 $11 {[%emt 0:00:29]} 38. Re1 {[%emt 0:00:16]} Qc2+ {[%emt 0:00:34]} 39. Kh1 {[%emt 0:00:43]} (39. Qg2 $11 Qxc3 40. Ree6) 39... Rae8 $17 {[%emt 0:01:07] Hoping for ...Rgf8.} 40. Rxc6 {[%emt 0:07:31]} (40. Rde6 $17 Rxe6 41. Rxe6) 40... Rxe1+ $2 {[%emt 0:00:28]} (40... Rgf8 $1 $19 {Threatens to win with ...Re2.} 41. Rc5 Rxe1+ 42. Qxe1 Qd3) 41. Qxe1 {[%emt 0:30:06][%mdl 4096] Endgame KQR-KQR} Qf5 {[%emt 0:05:46]} 42. Qe2 {[%emt 0:00:00] Inhibits Qf3+.} (42. Qe6 $11 {keeps the balance.} Qf1+ 43. Kh2) 42... Rf8 {[%emt 0:02:31]} ({Black should try} 42... Qd5+ $1 $17 43. Qg2 Qf7) 43. Kg1 {[%emt 0:00:00]} Qh3 {[%emt 0:07:50] aiming for ...Qg3+.} 44. d5 {[%emt 0:00:00]} (44. Rc5 $11 {remains equal.}) 44... Qg3+ {[%emt 0:02:45][%mdl 1024] Black has strong compensation.} 45. Kh1 {[%emt 0:00:00]} g4 {[%emt 0:00:36][%cal Bg5g4,Bg4g3][%mdl 32]} 46. Rc4 $2 {[%emt 0:00:00][%mdl 8192] [#]} (46. Re6 $17 {was the crucial defense.}) 46... Qh3+ $1 $19 {[%emt 0:04:22]} 47. Kg1 {[%emt 0:00:00] [#]} g3 {[%emt 0:01:38][%cal Of8f1]} ({Wrong is} 47... Qg3+ $2 48. Kh1 Qh3+ 49. Kg1 Qg3+ 50. Kh1 $19) 48. Qg2 {[%emt 0:00:00] Against Rf1+} Qf5 {[%emt 0:02:48]} (48... Qxh5 $19 {[%cal Of8f1] ( -> ...Rf1+!)} 49. Rd4 Qg6) 49. Re4 $15 Qxd5 {[%emt 0:00:04]} 50. Re1 $2 {[%emt 0:00:02][%mdl 8192] Prevents Qd1.  Weighted Error Value: White=0.52/Black=0.44} (50. Qe2 $1 $15) 0-1

[Event "Czech Championship Women 2022"]
[Site "Jaromerice nad Rokytnou"]
[Date "2022.05.26"]
[Round "6.1"]
[White "Pilsova, Karolina"]
[Black "Petrova, Kristyna"]
[Result "1/2-1/2"]
[ECO "D03"]
[WhiteElo "2229"]
[BlackElo "2264"]
[Annotator "TA"]
[PlyCount "60"]
[EventDate "2022.05.24"]
[EventType "tourn"]
[EventCountry "CZE"]
[SourceTitle "playchess.com"]
[Source "ChessBase"]
[SourceQuality "1"]
[TimeControl "40/5400+30:1800+30"]

{[%evp 18,60,30,26,34,29,27,-33,0,-39,-31,-20,-7,-61,39,-14,63,0,0,-26,-14,-18,-26,-27,-25,-31,-21,-28,-11,-22,-7,-51,-40,-75,-39,-98,-57,-94,-20,-46,-53,-55,-2,-10,-15]} 1. d4 {[%emt 0:00:03]} Nf6 {[%emt 0:00:05]} 2. Bg5 {[%emt 0:00:08]} d5 {[%emt 0:00:06]} 3. e3 {[%emt 0:00:15]} c5 {[%emt 0:00:59]} 4. c3 {[%emt 0:00:20]} e6 {[%emt 0:01:31]} 5. Nd2 {[%emt 0:00:57]} Nc6 {[%emt 0:05:59]} 6. Ngf3 {[%emt 0:01:20]} Be7 {[%emt 0:09:36]} 7. Bd3 {[%emt 0:01:05]} b6 {[%emt 0:09:42]} 8. O-O {[%emt 0:07:03]} Bb7 {[%emt 0:01:43]} 9. Ne5 {[%emt 0:05:55]} Nxe5 {[%emt 0:17:55]} 10. dxe5 {[%emt 0:00:15]} Nd7 {[%emt 0:00:06][%csl LRe5,LRg5] D03: 1 d4 d5 2 Nf3 Nf6 3 Bg5, including Torre Attack with early ...d5.} 11. Bxe7 {[%emt 0:06:54]} Qxe7 {[%emt 0:00:01]} 12. Qg4 {[%emt 0:00:07]} (12. f4 $11) 12... O-O-O {[%emt 0:06:56] Black is slightly better.} (12... h5 $5 {[%cal Rh5g4]} 13. Qa4 (13. Qxg7 O-O-O $17) 13... O-O $11) 13. Nf3 {[%emt 0:09:07] [#]} ({But not} 13. Qxg7 Rdg8 14. Qh6 Nxe5 $17) 13... h5 $146 {[%emt 0:06:36]} ({Predecessor:} 13... f6 14. Qh4 Qf7 15. exf6 gxf6 16. a4 a5 17. b4 Qg7 18. bxa5 bxa5 19. Rfb1 Rhg8 {0-1 (65) Costa,G-Noronha,L Brazil CXEB 2001}) 14. Qf4 {[%emt 0:14:36]} ({Avoid the trap} 14. Qxg7 $2 Rdg8 15. Qxh8 Rxh8 $19) 14... f6 {[%emt 0:01:20][%cal Oh5h4]} 15. exf6 {[%emt 0:03:19]} (15. h4 $11) 15... Qxf6 {[%emt 0:08:06]} (15... gxf6 $15 16. Nh4 Rhg8) 16. Rfe1 {[%emt 0:10:15]} (16. Ng5 $14) 16... Rhf8 {[%emt 0:05:36]} (16... e5 $11 17. Qxf6 gxf6) 17. Qxf6 {[%emt 0:01:16] White is much more active.} ({White should try} 17. Qg3 $14) 17... gxf6 $11 {[%emt 0:02:56]} 18. e4 {[%emt 0:02:42]} c4 {[%emt 0:00:18]} 19. Bc2 {[%emt 0:08:06]} dxe4 {[%emt 0:00:17]} 20. Bxe4 {[%emt 0:00:27]} Nc5 {[%emt 0:00:06]} 21. Bxb7+ {[%emt 0:03:57]} Kxb7 {[%emt 0:00:01]} 22. Re2 {[%emt 0:00:06]} e5 {[%emt 0:05:25]} 23. Nd2 {[%emt 0:10:14]} b5 {[%emt 0:00:11]} 24. Ne4 {[%emt 0:01:45]} Nd3 {[%emt 0:06:19]} 25. h4 {[%emt 0:02:36]} Rf7 {[%emt 0:03:50]} 26. Rd1 {[%emt 0:02:07]} (26. b4 $15) 26... Kc6 {[%emt 0:04:53]} 27. Red2 {[%emt 0:00:27]} Rdd7 {[%emt 0:00:45]} ({Better is} 27... f5 $17 28. Ng5 Re7) 28. f3 {[%emt 0:03:24]} f5 {[%emt 0:01:51]} 29. Nf2 {[%emt 0:01:56][%cal Rf2d3]} Nxf2 {[%emt 0:00:23]} (29... Nc5 $15) 30. Kxf2 {[%emt 0:00:08]} f4 {[%emt 0:00:30] Weighted Error Value: White=0.31/Black=0.39} 1/2-1/2

[Event "Czech Championship Women 2022"]
[Site "Jaromerice nad Rokytnou"]
[Date "2022.05.26"]
[Round "6.2"]
[White "Lhotska, Anna"]
[Black "Nemcova, Karin"]
[Result "1-0"]
[ECO "B47"]
[WhiteElo "2029"]
[BlackElo "2181"]
[Annotator "TA"]
[PlyCount "93"]
[EventDate "2022.05.24"]
[EventType "tourn"]
[EventCountry "CZE"]
[SourceTitle "playchess.com"]
[Source "ChessBase"]
[SourceQuality "1"]
[TimeControl "40/5400+30:1800+30"]

{[%evp 19,93,25,43,36,39,4,0,0,0,0,20,0,0,0,0,0,0,0,14,29,68,59,53,50,47,43,43,49,79,75,80,64,81,85,81,89,106,93,81,7,0,0,0,0,60,58,58,61,85,85,104,102,86,73,93,102,184,0,0,0,0,0,0,-159,-147,-166,-131,-150,-150,-151,-115,-154,-100,-104,296,293]} 1. e4 {[%emt 0:00:03]} c5 {[%emt 0:00:06]} 2. Nf3 {[%emt 0:00:04]} e6 {[%emt 0:00:07]} 3. d4 {[%emt 0:00:14]} cxd4 {[%emt 0:00:07]} 4. Nxd4 {[%emt 0:00:06]} Nc6 {[%emt 0:00:07]} 5. Nc3 {[%emt 0:01:45]} Qc7 {[%emt 0:00:15]} 6. g3 {[%emt 0:01:04]} a6 {[%emt 0:01:25]} 7. Bg2 {[%emt 0:00:16]} Nf6 {[%emt 0:01:14]} 8. O-O {[%emt 0:00:45]} Be7 {[%emt 0:01:54]} 9. Re1 {[%emt 0:00:53]} Nxd4 {[%emt 0:02:11]} 10. Qxd4 {[%emt 0:00:09]} e5 {[%emt 0:00:19]} 11. Qd3 {[%emt 0:01:42] B47: Sicilian: Taimanov: 5 Nc3 Qc7 6 f4, 6 g3 and 6 Be2.} h6 {[%emt 0:02:32] [#] Prevents Bg5.} 12. Kh1 $146 {[%emt 0:21:09]} ({Predecessor:} 12. a4 d6 13. a5 Be6 14. Bd2 Rc8 15. b3 O-O 16. Ra2 Rfd8 17. Nd5 Nxd5 18. exd5 Bd7 {1-0 (60) Moskalenko,A (2533)-Gorbatov,A (2397) Moscow 2018}) 12... O-O {[%emt 0:02:57]} 13. f4 {[%emt 0:04:12] The position is equal.} d6 {[%emt 0:03:00]} 14. Be3 {[%emt 0:09:54]} Be6 {[%emt 0:01:42]} 15. Nd5 {[%emt 0:15:57]} Bxd5 {[%emt 0:02:20]} 16. exd5 {[%emt 0:00:06]} exf4 {[%emt 0:09:11]} 17. Bxf4 {[%emt 0:01:05]} Rfe8 {[%emt 0:00:22]} 18. c4 {[%emt 0:08:06]} Rac8 {[%emt 0:01:43]} 19. Rac1 {[%emt 0:02:10]} Qb6 {[%emt 0:01:36]} 20. Bh3 {[%emt 0:03:10] Against Ng4} Rcd8 {[%emt 0:03:55]} 21. Re2 {[%emt 0:04:34]} Bf8 {[%emt 0:09:21]} 22. Be3 {[%emt 0:00:32]} Qc7 {[%emt 0:01:04]} 23. b4 {[%emt 0:05:44]} Qe7 {[%emt 0:04:28][%cal Ob7b5]} 24. Rce1 {[%emt 0:05:00]} Qc7 {[%emt 0:07:07][%cal Ob7b5] Prevents Bb6.} 25. a3 {[%emt 0:03:41]} Re4 {[%emt 0:05:07]} 26. Bd4 {[%emt 0:00:32]} Rxe2 {[%emt 0:00:18]} 27. Rxe2 {[%emt 0:00:08]} Nd7 {[%emt 0:00:20][%cal Bf6d7,Bd7e5,Be5g4][%mdl 32]} 28. Rf2 {[%emt 0:01:56][%cal Of2f7] Threatens to win with Rxf7! White is much more active.} Re8 {[%emt 0:06:14]} 29. Qf5 {[%emt 0:05:23]} (29. Qf1 $16 Re7 30. Rc2) 29... Ne5 $11 {[%emt 0:00:27]} 30. Bf1 {[%emt 0:00:51]} g6 {[%emt 0:04:51]} 31. Qc2 {[%emt 0:00:43]} Qd7 {[%emt 0:01:22]} (31... Bg7 $11) 32. Bg2 $36 {[%emt 0:00:59][%mdl 2048] White is more active.} Ng4 {[%emt 0:09:56]} 33. Re2 {[%emt 0:01:24]} Bg7 {[%emt 0:05:47]} 34. Bg1 {[%emt 0:01:41] This bishop pair is nice.} Ne5 {[%emt 0:05:28]} 35. c5 {[%emt 0:00:47]} Rc8 {[%emt 0:00:31]} 36. Qb3 {[%emt 0:00:27]} Qb5 {[%emt 0:00:57]} 37. Rc2 {[%emt 0:01:04] And now c6 would win.} dxc5 {[%emt 0:00:59] [#]} (37... Qe8 $16 {is a better defense.} 38. h3 (38. cxd6 Bf8 $16) 38... h5) 38. Rxc5 $2 {[%emt 0:00:17]} ({But not} 38. Bxc5 $6 Bf8 39. Bg1 Rxc2 40. Qxc2 Bd6 $11) ({Only move:} 38. a4 $1 $18 {[%cal Ra4b5]} Qb6 39. Qa3 (39. Bxc5 Qf6 $16) (39. Rxc5 Rxc5 40. Bxc5 Qd8 $14)) 38... Rxc5 $11 {[%emt 0:00:32]} 39. Bxc5 {[%emt 0:00:05]} Qe2 {[%emt 0:03:15]} 40. h3 {[%emt 0:01:15]} Nd3 {[%emt 0:04:03] White must now prevent ...Ne1.} 41. Qb1 {[%emt 0:13:40]} (41. d6 $11 Nxc5 42. bxc5) 41... Be5 $17 {[%emt 0:10:34]} 42. Qf1 {[%emt 0:10:01]} Qc2 {[%emt 0:04:17]} 43. d6 {[%emt 0:05:39] aiming for Bd5.} Nxc5 {[%emt 0:00:47]} 44. bxc5 {[%emt 0:00:07]} Qxc5 {[%emt 0:00:05]} 45. d7 {[%emt 0:00:29] [#]} Qd6 {[%emt 0:02:35]} (45... Qd4 $142 $1 46. Qf3 Qxd7 47. Qxb7 Bc7) 46. Qe2 {[%emt 0:00:26][%cal Oe2e5]} Kg7 $2 {[%emt 0:02:19][%mdl 8192]} (46... Bf6 $17 {and life is bright.} 47. Qf3 Bd8 48. Qxb7 Qxg3) 47. d8=Q {[%emt 0:00:29] Weighted Error Value: White=0.21 (precise) /Black=0.32} 1-0

[Event "Czech Championship Women 2022"]
[Site "Jaromerice nad Rokytnou"]
[Date "2022.05.26"]
[Round "6.3"]
[White "Sikorova, Olga"]
[Black "Zelbova, Lada"]
[Result "1-0"]
[ECO "A12"]
[WhiteElo "2173"]
[BlackElo "1967"]
[Annotator "TA"]
[PlyCount "101"]
[EventDate "2022.05.24"]
[EventType "tourn"]
[EventCountry "CZE"]
[SourceTitle "playchess.com"]
[Source "ChessBase"]
[SourceQuality "1"]
[TimeControl "40/5400+30:1800+30"]

{[%evp 20,101,-9,-25,-12,-27,8,6,0,15,66,47,41,40,67,64,88,89,156,152,159,68,158,155,164,160,186,169,284,284,284,284,278,281,276,276,259,218,243,244,232,231,240,217,236,246,239,238,307,307,356,348,339,323,395,361,401,383,379,281,337,331,287,270,281,249,256,235,327,324,334,331,321,310,664,670,29971,29972,29972,29973,29965,29960,29986,29987]} 1. c4 {[%emt 0:00:03]} c6 {[%emt 0:00:44]} 2. Nf3 {[%emt 0:00:43]} d5 {[%emt 0:00:12]} 3. g3 {[%emt 0:00:34]} Nf6 {[%emt 0:04:25]} 4. b3 {[%emt 0:01:01]} Bf5 {[%emt 0:00:35]} 5. Bg2 {[%emt 0:00:16]} e6 {[%emt 0:00:33]} 6. O-O {[%emt 0:00:33]} Be7 {[%emt 0:01:00]} 7. d3 {[%emt 0:01:32]} h6 {[%emt 0:00:10]} 8. Bb2 {[%emt 0:00:24]} Nbd7 {[%emt 0:02:04]} 9. Nbd2 {[%emt 0:01:18]} O-O {[%emt 0:00:20]} 10. a3 {[%emt 0:01:49]} a5 {[%emt 0:00:10]} 11. Ra2 {[%emt 0:02:00]} Qc7 {[%emt 0:03:55] A12: English Opening: 1...c6 with b3 by White.} 12. Qa1 {[%emt 0:00:28] [#]} c5 $146 {[%emt 0:00:23]} ({Predecessor:} 12... Rfe8 13. Rc1 Bh7 14. Ne5 Nxe5 15. Bxe5 Qd7 16. Nf3 Bg6 17. Bd4 Qd8 18. c5 Bh5 19. h3 Bxf3 20. Bxf3 {1-0 (48) Tabatabaei,M (2613)-Wong,Y (2381) Chess.com INT 2021}) 13. cxd5 {[%emt 0:06:41]} exd5 {[%emt 0:01:20] The position is equal.} 14. e4 {[%emt 0:00:24]} dxe4 {[%emt 0:06:57]} (14... Be6 $11) 15. dxe4 $14 {[%emt 0:00:26]} Be6 {[%emt 0:02:28]} 16. a4 {[%emt 0:02:00]} Rfd8 {[%emt 0:01:34]} 17. Nc4 {[%emt 0:06:49]} Bf8 {[%emt 0:12:47]} 18. Nfd2 {[%emt 0:12:17]} Nb8 {[%emt 0:22:05]} ({Black should play} 18... Nb6) 19. Be5 $16 {[%emt 0:03:57]} ({Resist} 19. Bxf6 $6 gxf6 20. Ne3 (20. Qxf6 Nc6 $14) 20... Nc6 $14) 19... Qe7 {[%emt 0:02:10]} 20. Bxf6 {[%emt 0:07:05] White is more active.} (20. Nb6 $16 Ra7 21. Nd5 Nxd5 22. exd5) 20... gxf6 {[%emt 0:00:27] [#]} (20... Qxf6 $14 21. e5 Qe7) 21. Nb6 $1 $36 {[%emt 0:01:04][%mdl 2048] White is on the roll. Pair of Knights!} Ra6 {[%emt 0:00:18]} 22. Nd5 {[%emt 0:00:18]} Bxd5 {[%emt 0:10:47]} 23. exd5 {[%emt 0:00:48]} Rad6 {[%emt 0:04:20]} (23... Qe5 $142 24. Qb1 f5) 24. Re1 $18 {[%emt 0:03:09]} Qc7 {[%emt 0:04:57]} 25. Ne4 {[%emt 0:00:36][%csl LRd6,LRf6]} Nd7 {[%emt 0:00:40]} 26. Nxd6 {[%emt 0:01:04]} Bxd6 {[%emt 0:00:17]} 27. Qc1 {[%emt 0:04:53]} Kg7 {[%emt 0:01:01]} 28. f4 {[%emt 0:02:14] Prevents Ne5.} Qb6 {[%emt 0:07:40]} 29. Qc4 {[%emt 0:00:46]} Qb4 {[%emt 0:02:32]} 30. Rc1 {[%emt 0:09:57]} Re8 {[%emt 0:04:02] [#]} 31. Kf2 $1 {[%emt 0:01:36]} Nb6 {[%emt 0:02:42]} 32. Qxb4 {[%emt 0:02:42]} cxb4 {[%emt 0:00:41]} 33. Rac2 {[%emt 0:08:49] Inhibits Nc8.} Rd8 {[%emt 0:01:03]} 34. Be4 {[%emt 0:03:52]} Re8 {[%emt 0:00:57]} 35. Kf3 {[%emt 0:01:24]} Rd8 {[%emt 0:00:43]} 36. g4 {[%emt 0:01:35]} Re8 {[%emt 0:00:38]} 37. h4 {[%emt 0:09:40][%cal Bh2h4,Bh4h5][%mdl 32]} Rd8 {[%emt 0:00:28]} 38. h5 {[%emt 0:00:04]} Re8 {[%emt 0:00:29] [#]} 39. Rc7 $1 {[%emt 0:00:50][%mdl 512]} Bxc7 {[%emt 0:00:42]} (39... Rb8 40. R7c2) 40. Rxc7 {[%emt 0:00:01][%mdl 4096] Endgame KRB-KRN} f5 {[%emt 0:00:35]} 41. gxf5 {[%emt 0:31:05]} Rd8 {[%emt 0:17:45]} 42. Rxb7 {[%emt 0:00:00]} Nxd5 {[%emt 0:00:32]} 43. Bd3 {[%emt 0:00:00] aiming for Bc4.} Nxf4 {[%emt 0:04:42]} 44. Bc4 {[%emt 0:00:00]} ({Weaker is} 44. Kxf4 Rxd3 45. Rb5 Rxb3 $11) 44... Nd5 {[%emt 0:00:34]} 45. Rb5 {[%emt 0:00:00]} Nf6 {[%emt 0:02:54]} 46. Rxa5 {[%emt 0:00:00] Threatens to win with Ra7.} Nxh5 $2 {[%emt 0:00:06]} (46... Rd7 47. Rb5 Nxh5 48. Rxb4 Ra7) 47. Ra7 {[%emt 0:00:00]} Rf8 {[%emt 0:04:28]} 48. a5 {[%emt 0:00:00] White mates.} Kf6 {[%emt 0:01:20] [#]} 49. Rxf7+ $1 {[%emt 0:00:00][%mdl 512]} Rxf7 {[%emt 0:01:53]} 50. Bxf7 {[%emt 0:00:00]} Ng7 {[%emt 0:00:48]} 51. Bg6 {[%emt 0:00:00] Weighted Error Value: White=0.07 (flawless) /Black=0.49} 1-0